[Event "*** SCC Grand Prix: Titled Tuesday Blitz"]
[Site "Chess.com"]
[Date "2020.06.23"]
[Round "7"]
[White "KyrgyzFighter"]
[Black "Benjoneliere44"]
[Result "0-1"]
[WhiteElo "2296"]
[BlackElo "2553"]
[TimeControl "180+1"]
[EndTime "11:13:35 PDT"]
[Termination "Benjoneliere44 won by resignation"]

1. c4 {[%clk 0:03:00.9]} 1... d6 {[%clk 0:03:00]} 2. Nc3 {[%clk 0:03:01]} 2...
e5 {[%clk 0:02:59.7]} 3. g3 {[%clk 0:02:59.4]} 3... f5 {[%clk 0:02:57.3]} 4. Bg2
{[%clk 0:02:59.6]} 4... Nf6 {[%clk 0:02:57.7]} 5. e3 {[%clk 0:03:00.1]} 5... Be7
{[%clk 0:02:57.4]} 6. Nge2 {[%clk 0:03:00.4]} 6... O-O {[%clk 0:02:57.4]} 7. O-O
{[%clk 0:03:00.9]} 7... h6 {[%clk 0:02:56.3]} 8. Rb1 {[%clk 0:02:59.8]} 8... g5
{[%clk 0:02:56.6]} 9. d4 {[%clk 0:02:59.3]} 9... e4 {[%clk 0:02:53.9]} 10. b4
{[%clk 0:02:57.2]} 10... Qe8 {[%clk 0:02:49.6]} 11. d5 {[%clk 0:02:48.5]} 11...
Nbd7 {[%clk 0:02:46.4]} 12. Nb5 {[%clk 0:02:48.1]} 12... Bd8 {[%clk 0:02:44.8]}
13. Ned4 {[%clk 0:02:47.7]} 13... Ne5 {[%clk 0:02:43.5]} 14. c5 {[%clk
0:02:47.6]} 14... a6 {[%clk 0:02:40.3]} 15. Nc3 {[%clk 0:02:43.8]} 15... g4
{[%clk 0:02:31.9]} 16. Qb3 {[%clk 0:02:13.5]} 16... Nf3+ {[%clk 0:02:18.2]} 17.
Nxf3 {[%clk 0:02:13.4]} 17... gxf3 {[%clk 0:02:19.1]} 18. Bh1 {[%clk 0:02:13.7]}
18... Qh5 {[%clk 0:02:17.6]} 19. cxd6 {[%clk 0:02:09.3]} 19... cxd6 {[%clk
0:01:53.8]} 20. Rd1 {[%clk 0:01:57.4]} 20... Ng4 {[%clk 0:01:52.9]} 21. h4
{[%clk 0:01:57.4]} 21... Bxh4 {[%clk 0:01:52.6]} 22. Qc2 {[%clk 0:01:55.5]}
22... Bf6 {[%clk 0:01:45.1]} 0-1

[Event "*** SCC Grand Prix: Titled Tuesday Blitz"]
[Site "Chess.com"]
[Date "2020.06.23"]
[Round "7"]
[White "TigrVShlyape"]
[Black "Evgeny81"]
[Result "1/2-1/2"]
[WhiteElo "2917"]
[BlackElo "2804"]
[TimeControl "180+1"]
[EndTime "11:13:42 PDT"]
[Termination "Game drawn by repetition"]

1. d4 {[%clk 0:03:00.9]} 1... Nf6 {[%clk 0:03:00]} 2. Nf3 {[%clk 0:03:00.8]}
2... d5 {[%clk 0:02:59.2]} 3. Bf4 {[%clk 0:03:00]} 3... Bf5 {[%clk 0:02:59.5]}
4. e3 {[%clk 0:02:59.2]} 4... e6 {[%clk 0:02:59.4]} 5. c4 {[%clk 0:02:59.7]}
5... Bxb1 {[%clk 0:02:58.9]} 6. Qa4+ {[%clk 0:02:59.2]} 6... Qd7 {[%clk
0:02:50.4]} 7. Qxd7+ {[%clk 0:02:58.3]} 7... Nbxd7 {[%clk 0:02:51.3]} 8. Rxb1
{[%clk 0:02:58.3]} 8... Bd6 {[%clk 0:02:50.2]} 9. Bxd6 {[%clk 0:02:51.9]} 9...
cxd6 {[%clk 0:02:51.1]} 10. cxd5 {[%clk 0:02:47.5]} 10... Nxd5 {[%clk
0:02:50.5]} 11. Rc1 {[%clk 0:02:45.9]} 11... Ke7 {[%clk 0:02:47.2]} 12. Bd3
{[%clk 0:02:45.8]} 12... Rhc8 {[%clk 0:02:44.8]} 13. Ke2 {[%clk 0:02:45.4]}
13... h6 {[%clk 0:02:43.6]} 14. a3 {[%clk 0:02:45.2]} 14... N7b6 {[%clk
0:02:38.6]} 15. g3 {[%clk 0:02:35.6]} 15... Rxc1 {[%clk 0:02:35.1]} 16. Rxc1
{[%clk 0:02:34]} 16... Rc8 {[%clk 0:02:35.5]} 17. Rxc8 {[%clk 0:02:24.6]} 17...
Nxc8 {[%clk 0:02:36.4]} 18. Be4 {[%clk 0:02:19.8]} 18... Ncb6 {[%clk 0:02:34]}
19. Nd2 {[%clk 0:02:17.7]} 19... Kd7 {[%clk 0:02:24.4]} 20. Kd3 {[%clk
0:02:15.9]} 20... Kc7 {[%clk 0:02:23.6]} 21. b3 {[%clk 0:02:09.7]} 21... Nf6
{[%clk 0:02:18.4]} 22. Bg2 {[%clk 0:02:07.6]} 22... d5 {[%clk 0:02:17.1]} 23.
Nf3 {[%clk 0:01:51.5]} 23... Ne4 {[%clk 0:02:12.2]} 24. Ke2 {[%clk 0:01:41.6]}
24... Nc3+ {[%clk 0:02:07.3]} 25. Kd3 {[%clk 0:01:41]} 25... Ne4 {[%clk
0:02:07.1]} 26. Ke2 {[%clk 0:01:37.8]} 26... Nc3+ {[%clk 0:02:06.7]} 27. Kd3
{[%clk 0:01:38]} 27... Ne4 {[%clk 0:02:06.6]} 1/2-1/2

[Event "*** SCC Grand Prix: Titled Tuesday Blitz"]
[Site "Chess.com"]
[Date "2020.06.23"]
[Round "7"]
[White "DonBroca"]
[Black "Pavel_Mir"]
[Result "0-1"]
[WhiteElo "2145"]
[BlackElo "2346"]
[TimeControl "180+1"]
[EndTime "11:13:53 PDT"]
[Termination "Pavel_Mir won by resignation"]

1. c4 {[%clk 0:02:59.9]} 1... g6 {[%clk 0:02:57.2]} 2. Nc3 {[%clk 0:02:59.5]}
2... Bg7 {[%clk 0:02:57.9]} 3. d4 {[%clk 0:02:59.6]} 3... d5 {[%clk 0:02:50.7]}
4. Nf3 {[%clk 0:02:58.9]} 4... Nf6 {[%clk 0:02:42.7]} 5. cxd5 {[%clk 0:02:53.8]}
5... Nxd5 {[%clk 0:02:42.7]} 6. e4 {[%clk 0:02:54]} 6... Nxc3 {[%clk 0:02:42.2]}
7. bxc3 {[%clk 0:02:54.9]} 7... O-O {[%clk 0:02:42.5]} 8. Bc4 {[%clk 0:02:54]}
8... c5 {[%clk 0:02:41]} 9. h3 {[%clk 0:02:52.7]} 9... cxd4 {[%clk 0:02:37]} 10.
cxd4 {[%clk 0:02:53.6]} 10... Nc6 {[%clk 0:02:37.5]} 11. Bb2 {[%clk 0:02:52.1]}
11... Qa5+ {[%clk 0:02:32.9]} 12. Qd2 {[%clk 0:02:39.7]} 12... Qxd2+ {[%clk
0:02:30.6]} 13. Kxd2 {[%clk 0:02:40.6]} 13... Rd8 {[%clk 0:02:29.6]} 14. Ke3
{[%clk 0:02:35.1]} 14... Na5 {[%clk 0:02:20.7]} 15. Rac1 {[%clk 0:01:57.7]}
15... Nxc4+ {[%clk 0:02:18.4]} 16. Rxc4 {[%clk 0:01:58.6]} 16... Be6 {[%clk
0:02:18.7]} 17. Rc7 {[%clk 0:01:57.8]} 17... Bxa2 {[%clk 0:02:11.9]} 18. Rxe7
{[%clk 0:01:44.6]} 18... b5 {[%clk 0:02:08.3]} 19. Rc1 {[%clk 0:01:42]} 19...
Bh6+ {[%clk 0:02:07.8]} 20. Ke2 {[%clk 0:01:38]} 20... Bxc1 {[%clk 0:02:05.5]}
21. Bxc1 {[%clk 0:01:38.9]} 21... a5 {[%clk 0:02:05.8]} 22. Ne5 {[%clk
0:01:33.5]} 22... Rxd4 {[%clk 0:01:59.1]} 23. Nc6 {[%clk 0:01:30.8]} 23... Rc4
{[%clk 0:01:53]} 0-1

[Event "*** SCC Grand Prix: Titled Tuesday Blitz"]
[Site "Chess.com"]
[Date "2020.06.23"]
[Round "7"]
[White "Justinz"]
[Black "Bastiandash"]
[Result "1-0"]
[WhiteElo "2385"]
[BlackElo "2215"]
[TimeControl "180+1"]
[EndTime "11:14:06 PDT"]
[Termination "Justinz won by resignation"]

1. e4 {[%clk 0:03:00.9]} 1... c5 {[%clk 0:02:53]} 2. Nf3 {[%clk 0:02:55.2]} 2...
e6 {[%clk 0:02:51.1]} 3. d4 {[%clk 0:02:54.9]} 3... cxd4 {[%clk 0:02:52]} 4.
Nxd4 {[%clk 0:02:54.1]} 4... a6 {[%clk 0:02:52.2]} 5. Nc3 {[%clk 0:02:54.6]}
5... b5 {[%clk 0:02:51.5]} 6. a3 {[%clk 0:02:47.3]} 6... Bb7 {[%clk 0:02:51.3]}
7. g4 {[%clk 0:02:47.3]} 7... Qc7 {[%clk 0:02:45.8]} 8. g5 {[%clk 0:02:46.8]}
8... h6 {[%clk 0:02:43.9]} 9. g6 {[%clk 0:02:44.1]} 9... fxg6 {[%clk 0:02:27.3]}
10. Qg4 {[%clk 0:02:42.6]} 10... Ne7 {[%clk 0:02:09.7]} 11. Be3 {[%clk
0:02:38.5]} 11... Nbc6 {[%clk 0:02:03.9]} 12. O-O-O {[%clk 0:02:36.2]} 12... Ne5
{[%clk 0:02:03.6]} 13. Qg3 {[%clk 0:02:33.2]} 13... Rc8 {[%clk 0:01:57.4]} 14.
Bf4 {[%clk 0:02:19.5]} 14... N7c6 {[%clk 0:01:28.1]} 15. Nxc6 {[%clk 0:02:17.1]}
15... Qxc6 {[%clk 0:01:18.9]} 16. Bxe5 {[%clk 0:02:15.1]} 16... b4 {[%clk
0:01:19.1]} 17. Qxg6+ {[%clk 0:02:13.7]} 17... Kd8 {[%clk 0:01:17]} 18. axb4
{[%clk 0:02:12]} 18... Bxb4 {[%clk 0:01:15.1]} 19. Qxg7 {[%clk 0:02:12]} 19...
Re8 {[%clk 0:01:13.7]} 20. Rd3 {[%clk 0:02:03.8]} 20... Bxc3 {[%clk 0:01:09.7]}
21. Rxc3 {[%clk 0:02:01.9]} 21... Qxe4 {[%clk 0:01:07.4]} 22. Bf6+ {[%clk
0:02:01.5]} 1-0

[Event "*** SCC Grand Prix: Titled Tuesday Blitz"]
[Site "Chess.com"]
[Date "2020.06.23"]
[Round "7"]
[White "EvgenyRomanov"]
[Black "juniortay"]
[Result "1-0"]
[WhiteElo "2633"]
[BlackElo "2402"]
[TimeControl "180+1"]
[EndTime "11:14:14 PDT"]
[Termination "EvgenyRomanov won by resignation"]

1. c4 {[%clk 0:02:59]} 1... e6 {[%clk 0:02:59.5]} 2. g3 {[%clk 0:02:58.7]} 2...
d5 {[%clk 0:02:59.3]} 3. Bg2 {[%clk 0:02:58.6]} 3... c5 {[%clk 0:02:59.3]} 4.
Nf3 {[%clk 0:02:52.6]} 4... Nc6 {[%clk 0:02:58.7]} 5. cxd5 {[%clk 0:02:51.8]}
5... exd5 {[%clk 0:02:58.4]} 6. d4 {[%clk 0:02:52.3]} 6... Nf6 {[%clk
0:02:58.7]} 7. O-O {[%clk 0:02:51.6]} 7... cxd4 {[%clk 0:02:58.6]} 8. Nxd4
{[%clk 0:02:51.2]} 8... Bc5 {[%clk 0:02:59]} 9. Nxc6 {[%clk 0:02:21.9]} 9...
bxc6 {[%clk 0:02:57.7]} 10. Qc2 {[%clk 0:02:22.1]} 10... Qb6 {[%clk 0:02:56.9]}
11. Nc3 {[%clk 0:02:20.5]} 11... Be7 {[%clk 0:02:56.3]} 12. Na4 {[%clk
0:02:18.7]} 12... Qa6 {[%clk 0:02:50]} 13. Be3 {[%clk 0:02:15.9]} 13... O-O
{[%clk 0:02:48.7]} 14. Bc5 {[%clk 0:02:15.2]} 14... Re8 {[%clk 0:02:40.9]} 15.
Bxe7 {[%clk 0:02:12.7]} 15... Rxe7 {[%clk 0:02:40.3]} 16. e3 {[%clk 0:02:12.6]}
16... h5 {[%clk 0:02:31.3]} 17. Rfc1 {[%clk 0:02:10.4]} 17... Kf8 {[%clk
0:01:55.1]} 18. b3 {[%clk 0:02:05.5]} 18... Re6 {[%clk 0:01:46.5]} 19. Nc5
{[%clk 0:02:03.9]} 19... Qa5 {[%clk 0:01:42.4]} 20. Nxe6+ {[%clk 0:02:02.9]}
20... Bxe6 {[%clk 0:01:42]} 21. Qxc6 {[%clk 0:02:03.1]} 21... Rc8 {[%clk
0:01:42.1]} 22. Qd6+ {[%clk 0:02:02.5]} 22... Kg8 {[%clk 0:01:41]} 23. Rxc8+
{[%clk 0:02:01.7]} 23... Bxc8 {[%clk 0:01:40.8]} 24. b4 {[%clk 0:01:50.3]} 1-0

[Event "*** SCC Grand Prix: Titled Tuesday Blitz"]
[Site "Chess.com"]
[Date "2020.06.23"]
[Round "7"]
[White "SamuelGhimpu2003"]
[Black "Poghosyan_Suren"]
[Result "1-0"]
[WhiteElo "2601"]
[BlackElo "2449"]
[TimeControl "180+1"]
[EndTime "11:14:37 PDT"]
[Termination "SamuelGhimpu2003 won by resignation"]

1. f4 {[%clk 0:03:00.9]} 1... e5 {[%clk 0:02:59.4]} 2. fxe5 {[%clk 0:03:00.7]}
2... d6 {[%clk 0:02:59.5]} 3. exd6 {[%clk 0:03:01.6]} 3... Bxd6 {[%clk
0:03:00.2]} 4. Nf3 {[%clk 0:03:02.5]} 4... g5 {[%clk 0:02:59.9]} 5. g3 {[%clk
0:03:02.9]} 5... g4 {[%clk 0:02:59.4]} 6. Nh4 {[%clk 0:03:02.9]} 6... Ne7 {[%clk
0:03:00]} 7. e4 {[%clk 0:03:01.6]} 7... Ng6 {[%clk 0:02:58.7]} 8. Nf5 {[%clk
0:03:01.1]} 8... h5 {[%clk 0:01:59.1]} 9. d4 {[%clk 0:02:59.4]} 9... h4 {[%clk
0:01:57.9]} 10. Nxd6+ {[%clk 0:02:49.7]} 10... Qxd6 {[%clk 0:01:56.6]} 11. e5
{[%clk 0:02:49.7]} 11... Qd5 {[%clk 0:01:52.6]} 12. Rg1 {[%clk 0:02:48.7]} 12...
hxg3 {[%clk 0:01:52.9]} 13. hxg3 {[%clk 0:02:49.6]} 13... Nc6 {[%clk 0:01:53]}
14. Be3 {[%clk 0:02:47.2]} 14... Rh2 {[%clk 0:01:46.8]} 15. Nc3 {[%clk
0:02:43.7]} 15... Qa5 {[%clk 0:01:46.8]} 16. Rg2 {[%clk 0:02:28.2]} 16... Rh1
{[%clk 0:01:41.4]} 17. Qd2 {[%clk 0:02:27]} 17... Be6 {[%clk 0:01:36.9]} 18. Ne4
{[%clk 0:01:47.4]} 18... Qd5 {[%clk 0:01:22.6]} 19. Nf6+ {[%clk 0:01:44.7]}
19... Ke7 {[%clk 0:01:15.2]} 20. Nxd5+ {[%clk 0:01:45.6]} 20... Bxd5 {[%clk
0:01:16]} 21. Rf2 {[%clk 0:01:45.7]} 1-0

[Event "*** SCC Grand Prix: Titled Tuesday Blitz"]
[Site "Chess.com"]
[Date "2020.06.23"]
[Round "7"]
[White "Enki007"]
[Black "Anuar_Is"]
[Result "1-0"]
[WhiteElo "2731"]
[BlackElo "2825"]
[TimeControl "180+1"]
[EndTime "11:14:44 PDT"]
[Termination "Enki007 won by resignation"]

1. d4 {[%clk 0:03:00.9]} 1... Nf6 {[%clk 0:02:59.5]} 2. Nf3 {[%clk 0:03:01.6]}
2... g6 {[%clk 0:02:58.5]} 3. Nbd2 {[%clk 0:03:00.5]} 3... d5 {[%clk 0:02:57]}
4. b4 {[%clk 0:03:00.6]} 4... a5 {[%clk 0:02:56.7]} 5. b5 {[%clk 0:02:58.8]}
5... Bg7 {[%clk 0:02:56.9]} 6. e3 {[%clk 0:02:55.3]} 6... O-O {[%clk 0:02:56.1]}
7. Be2 {[%clk 0:02:50.4]} 7... c5 {[%clk 0:02:56]} 8. bxc6 {[%clk 0:02:48.8]}
8... Nxc6 {[%clk 0:02:56.2]} 9. O-O {[%clk 0:02:48.4]} 9... Bf5 {[%clk
0:02:50.4]} 10. c4 {[%clk 0:02:34.2]} 10... Nb4 {[%clk 0:02:45.7]} 11. Qb3
{[%clk 0:02:29.2]} 11... dxc4 {[%clk 0:02:10]} 12. Nxc4 {[%clk 0:02:26]} 12...
b5 {[%clk 0:02:06.6]} 13. Nce5 {[%clk 0:02:17.5]} 13... Nc2 {[%clk 0:01:55.3]}
14. Rb1 {[%clk 0:02:14.9]} 14... b4 {[%clk 0:01:55.5]} 15. Bd3 {[%clk
0:02:08.8]} 15... Rc8 {[%clk 0:01:35]} 16. Bxf5 {[%clk 0:02:02.1]} 16... gxf5
{[%clk 0:01:35.9]} 17. Bb2 {[%clk 0:01:52.6]} 17... Qd5 {[%clk 0:01:35.1]} 18.
Rfc1 {[%clk 0:01:42.7]} 18... Qxb3 {[%clk 0:01:30.4]} 19. axb3 {[%clk
0:01:43.6]} 19... a4 {[%clk 0:01:13.9]} 20. bxa4 {[%clk 0:01:35.9]} 20... b3
{[%clk 0:01:14.3]} 21. Nd2 {[%clk 0:01:29.7]} 21... Ne4 {[%clk 0:01:08.6]} 22.
Nxb3 {[%clk 0:01:27.7]} 22... Ra8 {[%clk 0:01:07.9]} 1-0

[Event "*** SCC Grand Prix: Titled Tuesday Blitz"]
[Site "Chess.com"]
[Date "2020.06.23"]
[Round "7"]
[White "exoticprincess"]
[Black "Grischuk"]
[Result "1-0"]
[WhiteElo "2799"]
[BlackElo "3075"]
[TimeControl "180+1"]
[EndTime "11:14:53 PDT"]
[Termination "exoticprincess won by resignation"]

1. d4 {[%clk 0:03:00.9]} 1... Nf6 {[%clk 0:02:56.4]} 2. c4 {[%clk 0:02:59.6]}
2... g6 {[%clk 0:02:55.6]} 3. Nc3 {[%clk 0:02:59.6]} 3... Bg7 {[%clk 0:02:55.8]}
4. e4 {[%clk 0:02:59.9]} 4... d6 {[%clk 0:02:56.4]} 5. f4 {[%clk 0:02:59.8]}
5... c5 {[%clk 0:02:54.4]} 6. d5 {[%clk 0:02:59.2]} 6... O-O {[%clk 0:02:53.2]}
7. Nf3 {[%clk 0:02:59.5]} 7... e6 {[%clk 0:02:53.9]} 8. Be2 {[%clk 0:02:59.5]}
8... exd5 {[%clk 0:02:53.7]} 9. cxd5 {[%clk 0:03:00.4]} 9... Nbd7 {[%clk
0:02:31.2]} 10. O-O {[%clk 0:02:58.5]} 10... Re8 {[%clk 0:02:31.4]} 11. Nd2
{[%clk 0:02:58.7]} 11... c4 {[%clk 0:02:31.9]} 12. Kh1 {[%clk 0:02:48]} 12... b5
{[%clk 0:01:59.5]} 13. Nxb5 {[%clk 0:02:41.9]} 13... Nxe4 {[%clk 0:01:57.9]} 14.
Nxe4 {[%clk 0:02:23.9]} 14... Rxe4 {[%clk 0:01:58.8]} 15. Bf3 {[%clk 0:02:19.4]}
15... Nc5 {[%clk 0:01:12.2]} 16. Bxe4 {[%clk 0:02:18.5]} 16... Nxe4 {[%clk
0:01:13.1]} 17. Qe2 {[%clk 0:02:03.6]} 17... Bf5 {[%clk 0:01:13.1]} 18. Be3
{[%clk 0:01:52.3]} 18... Qb6 {[%clk 0:00:20]} 1-0

[Event "*** SCC Grand Prix: Titled Tuesday Blitz"]
[Site "Chess.com"]
[Date "2020.06.23"]
[Round "7"]
[White "Titus369"]
[Black "ShahMatKanal"]
[Result "1-0"]
[WhiteElo "2557"]
[BlackElo "2397"]
[TimeControl "180+1"]
[EndTime "11:15:03 PDT"]
[Termination "Titus369 won by checkmate"]

1. e4 {[%clk 0:03:00.9]} 1... c5 {[%clk 0:02:55.1]} 2. Nf3 {[%clk 0:02:59.9]}
2... Nc6 {[%clk 0:02:54.6]} 3. d4 {[%clk 0:02:59.8]} 3... cxd4 {[%clk
0:02:55.5]} 4. Nxd4 {[%clk 0:03:00.5]} 4... e5 {[%clk 0:02:55.7]} 5. Nb5 {[%clk
0:02:58.7]} 5... a6 {[%clk 0:02:55.7]} 6. Nd6+ {[%clk 0:02:56.6]} 6... Bxd6
{[%clk 0:02:56.2]} 7. Qxd6 {[%clk 0:02:56.9]} 7... Qf6 {[%clk 0:02:57.1]} 8.
Qxf6 {[%clk 0:02:45.6]} 8... Nxf6 {[%clk 0:02:58]} 9. Nc3 {[%clk 0:02:45.6]}
9... d5 {[%clk 0:02:57.2]} 10. exd5 {[%clk 0:02:38.4]} 10... Nb4 {[%clk
0:02:57.2]} 11. Bd3 {[%clk 0:02:36.3]} 11... Nxd3+ {[%clk 0:02:53.7]} 12. cxd3
{[%clk 0:02:36.2]} 12... Bf5 {[%clk 0:02:54.6]} 13. Bg5 {[%clk 0:02:29.1]} 13...
Bxd3 {[%clk 0:02:48.7]} 14. O-O-O {[%clk 0:02:28.2]} 14... Bg6 {[%clk
0:01:37.8]} 15. Rhe1 {[%clk 0:02:27.3]} 15... Kd7 {[%clk 0:01:24.2]} 16. Rxe5
{[%clk 0:02:24.4]} 16... Rhe8 {[%clk 0:01:22.4]} 17. Rde1 {[%clk 0:02:23.9]}
17... Rxe5 {[%clk 0:01:19.9]} 18. Rxe5 {[%clk 0:02:24.8]} 18... Ng8 {[%clk
0:01:10.4]} 19. Bf4 {[%clk 0:02:22.1]} 19... f6 {[%clk 0:01:07.3]} 20. Re6
{[%clk 0:02:20.1]} 20... Re8 {[%clk 0:00:59.1]} 21. Rd6+ {[%clk 0:02:19.3]}
21... Kc8 {[%clk 0:00:58.6]} 22. Na4 {[%clk 0:02:17.9]} 22... Re4 {[%clk
0:00:35]} 23. Nb6+ {[%clk 0:02:15.2]} 23... Kb8 {[%clk 0:00:18.8]} 24. Rd8+
{[%clk 0:02:13.5]} 24... Ka7 {[%clk 0:00:18.7]} 25. Bc7 {[%clk 0:02:10.3]} 25...
Ne7 {[%clk 0:00:14.2]} 26. Ra8# {[%clk 0:02:01.8]} 1-0

[Event "*** SCC Grand Prix: Titled Tuesday Blitz"]
[Site "Chess.com"]
[Date "2020.06.23"]
[Round "7"]
[White "j_coca"]
[Black "MartinMatthiesen"]
[Result "0-1"]
[WhiteElo "2190"]
[BlackElo "2337"]
[TimeControl "180+1"]
[EndTime "11:15:06 PDT"]
[Termination "MartinMatthiesen won by resignation"]

1. f4 {[%clk 0:02:42.2]} 1... d5 {[%clk 0:02:58.8]} 2. Nf3 {[%clk 0:02:29.6]}
2... Nf6 {[%clk 0:02:58.3]} 3. e3 {[%clk 0:02:29.9]} 3... g6 {[%clk 0:02:58.5]}
4. d4 {[%clk 0:02:30.8]} 4... Bg7 {[%clk 0:02:58.8]} 5. c3 {[%clk 0:02:30.8]}
5... O-O {[%clk 0:02:58.5]} 6. Bd3 {[%clk 0:02:30.8]} 6... b6 {[%clk 0:02:58.5]}
7. O-O {[%clk 0:02:30.7]} 7... Ba6 {[%clk 0:02:58.1]} 8. Bxa6 {[%clk 0:02:28.2]}
8... Nxa6 {[%clk 0:02:59]} 9. Ne5 {[%clk 0:02:28.8]} 9... Nb8 {[%clk 0:02:50.5]}
10. Nd2 {[%clk 0:02:28.8]} 10... c5 {[%clk 0:02:48.4]} 11. Qf3 {[%clk 0:02:28]}
11... e6 {[%clk 0:02:46.8]} 12. g4 {[%clk 0:02:27.7]} 12... Qc7 {[%clk
0:02:43.5]} 13. Qg2 {[%clk 0:02:27.1]} 13... Nbd7 {[%clk 0:02:38.7]} 14. h4
{[%clk 0:02:07.9]} 14... Ne8 {[%clk 0:02:30.7]} 15. Nxd7 {[%clk 0:02:04.6]}
15... Qxd7 {[%clk 0:02:30.4]} 16. f5 {[%clk 0:02:05]} 16... gxf5 {[%clk
0:01:59.3]} 17. gxf5 {[%clk 0:02:04.5]} 17... Kh8 {[%clk 0:01:58.8]} 18. Kh1
{[%clk 0:02:04.3]} 18... Bf6 {[%clk 0:01:49.8]} 19. Qh3 {[%clk 0:02:00.5]} 19...
Nd6 {[%clk 0:01:47]} 20. e4 {[%clk 0:01:55.6]} 20... dxe4 {[%clk 0:01:35.9]} 21.
dxc5 {[%clk 0:01:55.6]} 21... Nxf5 {[%clk 0:01:30.3]} 22. cxb6 {[%clk
0:01:29.8]} 22... Rg8 {[%clk 0:01:26.3]} 23. Rg1 {[%clk 0:01:20.1]} 23... Rxg1+
{[%clk 0:01:24.1]} 24. Kxg1 {[%clk 0:01:21]} 24... Rg8+ {[%clk 0:01:23.8]} 25.
Kf1 {[%clk 0:01:20.6]} 25... e3 {[%clk 0:01:21.7]} 26. Nf3 {[%clk 0:01:15.2]}
26... Qd3+ {[%clk 0:01:18.6]} 27. Ke1 {[%clk 0:01:14.8]} 27... Bxh4+ {[%clk
0:01:17.5]} 0-1

[Event "*** SCC Grand Prix: Titled Tuesday Blitz"]
[Site "Chess.com"]
[Date "2020.06.23"]
[Round "7"]
[White "BikingBrian"]
[Black "Lion-Al-Messi"]
[Result "0-1"]
[WhiteElo "2259"]
[BlackElo "2447"]
[TimeControl "180+1"]
[EndTime "11:15:12 PDT"]
[Termination "Lion-Al-Messi won by resignation"]

1. d4 {[%clk 0:03:00.9]} 1... d5 {[%clk 0:02:59.7]} 2. Bf4 {[%clk 0:03:00.5]}
2... Nf6 {[%clk 0:02:59.7]} 3. e3 {[%clk 0:03:00.2]} 3... Bf5 {[%clk 0:02:59.6]}
4. c4 {[%clk 0:02:58.3]} 4... e6 {[%clk 0:02:59.7]} 5. Nc3 {[%clk 0:02:58.5]}
5... Bd6 {[%clk 0:02:58.9]} 6. Bg5 {[%clk 0:02:57.8]} 6... c6 {[%clk 0:02:58.1]}
7. Qb3 {[%clk 0:02:57]} 7... b6 {[%clk 0:02:47.9]} 8. cxd5 {[%clk 0:02:54.1]}
8... exd5 {[%clk 0:02:48.8]} 9. Nf3 {[%clk 0:02:50.1]} 9... O-O {[%clk
0:02:48.5]} 10. Ne5 {[%clk 0:02:24.8]} 10... h6 {[%clk 0:02:46.9]} 11. Bh4
{[%clk 0:02:23.9]} 11... Qc7 {[%clk 0:02:42.6]} 12. Bxf6 {[%clk 0:02:22.2]}
12... gxf6 {[%clk 0:02:42.2]} 13. Nf3 {[%clk 0:02:22.3]} 13... Nd7 {[%clk
0:02:41.5]} 14. Rc1 {[%clk 0:02:20.8]} 14... Qd8 {[%clk 0:02:37.3]} 15. Be2
{[%clk 0:02:18.3]} 15... Qe7 {[%clk 0:02:37.2]} 16. O-O {[%clk 0:02:17.8]} 16...
b5 {[%clk 0:02:37.5]} 17. a4 {[%clk 0:02:12.3]} 17... b4 {[%clk 0:02:36.1]} 18.
Na2 {[%clk 0:02:12.4]} 18... Rac8 {[%clk 0:02:32.7]} 19. Bd3 {[%clk 0:02:07.4]}
19... Be4 {[%clk 0:02:30.9]} 20. Nd2 {[%clk 0:01:58.9]} 20... a5 {[%clk
0:02:25.3]} 21. f3 {[%clk 0:01:51.3]} 21... Bg6 {[%clk 0:02:25]} 22. Rfe1 {[%clk
0:01:43.2]} 22... c5 {[%clk 0:02:19.7]} 23. Bb5 {[%clk 0:01:30]} 23... c4 {[%clk
0:02:19.1]} 24. Qd1 {[%clk 0:01:25.8]} 24... Bb8 {[%clk 0:02:17.2]} 25. e4
{[%clk 0:01:17.8]} 25... Qd6 {[%clk 0:02:16.7]} 26. Nf1 {[%clk 0:01:16.7]} 26...
Nb6 {[%clk 0:02:10.7]} 27. e5 {[%clk 0:01:02.1]} 27... fxe5 {[%clk 0:02:10.2]}
28. dxe5 {[%clk 0:01:03]} 28... Qc5+ {[%clk 0:02:09.4]} 29. Kh1 {[%clk
0:01:01.5]} 29... d4 {[%clk 0:02:08.2]} 30. e6 {[%clk 0:00:47.2]} 30... Qd6
{[%clk 0:02:01.1]} 31. exf7+ {[%clk 0:00:46]} 31... Rxf7 {[%clk 0:01:59.8]} 32.
Be8 {[%clk 0:00:40.7]} 32... Rxf3 {[%clk 0:01:55.2]} 33. Bxg6 {[%clk 0:00:34.3]}
33... Rxf1+ {[%clk 0:01:54.1]} 0-1

[Event "*** SCC Grand Prix: Titled Tuesday Blitz"]
[Site "Chess.com"]
[Date "2020.06.23"]
[Round "7"]
[White "sertalzin"]
[Black "Mbneu"]
[Result "0-1"]
[WhiteElo "2017"]
[BlackElo "2190"]
[TimeControl "180+1"]
[EndTime "11:15:13 PDT"]
[Termination "Mbneu won by resignation"]

1. d4 {[%clk 0:03:00.9]} 1... Nf6 {[%clk 0:02:59.3]} 2. c4 {[%clk 0:03:00.7]}
2... c5 {[%clk 0:02:59.7]} 3. d5 {[%clk 0:02:59.8]} 3... e6 {[%clk 0:03:00.2]}
4. Nc3 {[%clk 0:02:59.8]} 4... exd5 {[%clk 0:03:00.1]} 5. cxd5 {[%clk
0:02:59.8]} 5... d6 {[%clk 0:03:00.7]} 6. e4 {[%clk 0:02:59.9]} 6... g6 {[%clk
0:03:01.1]} 7. f4 {[%clk 0:03:00.1]} 7... Bg7 {[%clk 0:03:00.6]} 8. Nf3 {[%clk
0:02:59.9]} 8... O-O {[%clk 0:02:58.1]} 9. Be2 {[%clk 0:02:59.9]} 9... Nbd7
{[%clk 0:02:48.4]} 10. e5 {[%clk 0:02:49.7]} 10... dxe5 {[%clk 0:02:41.6]} 11.
fxe5 {[%clk 0:02:49]} 11... Ng4 {[%clk 0:02:42.2]} 12. e6 {[%clk 0:02:47.7]}
12... Nde5 {[%clk 0:02:36.2]} 13. exf7+ {[%clk 0:02:13]} 13... Rxf7 {[%clk
0:02:28.9]} 14. O-O {[%clk 0:02:12.7]} 14... Nxf3+ {[%clk 0:02:25.8]} 15. Bxf3
{[%clk 0:02:10.8]} 15... Bd4+ {[%clk 0:02:26.3]} 16. Kh1 {[%clk 0:02:09.3]}
16... Qh4 {[%clk 0:02:13.4]} 17. Bxg4 {[%clk 0:02:02.5]} 17... Bxg4 {[%clk
0:02:14.3]} 18. Qe1 {[%clk 0:01:43.1]} 18... Rxf1+ {[%clk 0:02:12.8]} 19. Qxf1
{[%clk 0:01:41.6]} 19... Rf8 {[%clk 0:02:12.5]} 20. Bf4 {[%clk 0:01:13.4]} 20...
g5 {[%clk 0:02:11.8]} 21. Qc4 {[%clk 0:00:34.7]} 21... gxf4 {[%clk 0:01:59.5]}
22. d6+ {[%clk 0:00:33.4]} 22... Kh8 {[%clk 0:01:57.5]} 0-1